fUSD/lending_fUSD_20260428
["ID","MTS","AMOUNT","RATE_DAILY","PERIOD"]
[421296607,1777386638887,-150.0,9.591e-05,2]
[421296608,1777386638896,-150.0,9.591e-05,2]
[421296609,1777386638905,-1533.0,9.606e-05,2]
[421296610,1777386638914,-152.0,9.606e-05,2]
[421296611,1777386638924,-1533.0,9.606e-05,2]
[421296612,1777386638933,-1533.0,9.606e-05,2]
[421296613,1777386638942,-152.0,9.606e-05,2]
[421296614,1777386638951,-154.35640537,9.606e-05,2]
[421296615,1777386638960,-1285.23732989,9.606e-05,2]
[421296616,1777386638969,-151.0,9.606e-05,2]
[421296617,1777386638978,-151.0,9.606e-05,2]
[421296618,1777386638987,-151.0,9.606e-05,2]
[421296619,1777386638996,-151.0,9.606e-05,2]
[421296620,1777386639006,-151.0,9.606e-05,2]
[421296621,1777386639247,-151.0,9.606e-05,2]
[421296622,1777386639257,-151.0,9.606e-05,2]
[421296623,1777386639267,-151.0,9.606e-05,2]
[421296624,1777386639276,-151.0,9.606e-05,2]
[421296625,1777386639285,-151.0,9.606e-05,2]
[421296626,1777386639294,-151.0,9.606e-05,2]
[421296627,1777386639303,-151.0,9.606e-05,2]
[421296628,1777386639312,-151.0,9.606e-05,2]
[421296629,1777386639321,-151.0,9.606e-05,2]
[421296630,1777386639330,-151.0,9.606e-05,2]
[421296631,1777386639339,-151.0,9.606e-05,2]
[421296632,1777386639348,-151.0,9.606e-05,2]
[421296633,1777386639357,-151.0,9.606e-05,2]
[421296634,1777386639366,-151.0,9.606e-05,2]
[421296635,1777386639374,-151.0,9.606e-05,2]
[421296636,1777386639383,-151.0,9.606e-05,2]
[421296637,1777386639392,-151.0,9.606e-05,2]
[421296638,1777386639401,-151.0,9.606e-05,2]
[421296639,1777386639410,-151.0,9.606e-05,2]
[421296640,1777386639419,-151.0,9.606e-05,2]
[421296641,1777386639427,-151.0,9.606e-05,2]
[421296642,1777386639436,-151.0,9.606e-05,2]
[421296643,1777386639445,-151.0,9.606e-05,2]
[421296644,1777386639453,-151.0,9.606e-05,2]
[421296645,1777386639463,-151.0,9.606e-05,2]
[421296646,1777386639472,-151.0,9.606e-05,2]
[421296647,1777386639480,-151.0,9.606e-05,2]
[421296648,1777386639490,-151.0,9.606e-05,2]
[421296649,1777386639499,-151.0,9.606e-05,2]
[421296650,1777386639508,-151.0,9.606e-05,2]
[421296651,1777386639517,-151.0,9.606e-05,2]
[421296652,1777386639526,-151.0,9.606e-05,2]
[421296653,1777386639535,-151.0,9.606e-05,2]
[421296654,1777386639544,-152.83090147,9.606e-05,2]
[421296655,1777386639552,-150.0,9.616e-05,2]
[421296656,1777386639561,-150.0,9.64e-05,2]
[421296657,1777386639570,-150.0,9.64e-05,2]
[421296658,1777386639579,-150.0,9.64e-05,2]
[421296659,1777386639588,-1000.0,9.646e-05,2]
[421296660,1777386639597,-1115.86718248,9.646e-05,2]
[421296661,1777386639606,-23698.30074,9.647e-05,2]
[421296662,1777386639615,-12243.6539705,9.647e-05,2]
[421296663,1777386639625,-151.0,9.647e-05,2]
[421296664,1777386639633,-151.0,9.647e-05,2]
[421296665,1777386639642,-151.0,9.647e-05,2]
[421296666,1777386639651,-151.0,9.647e-05,2]
[421296667,1777386639660,-151.0,9.647e-05,2]
[421296668,1777386639669,-151.0,9.647e-05,2]
[421296669,1777386639678,-151.0,9.647e-05,2]
[421296670,1777386639688,-219.998398,9.647e-05,2]
[421296671,1777386639697,-151.0,9.647e-05,2]
[421296672,1777386639706,-151.0,9.647e-05,2]
[421296673,1777386639715,-165.341426,9.647e-05,2]
[421296674,1777386639724,-150.0,9.665e-05,2]
[421296675,1777386639733,-150.0,9.665e-05,2]
[421296676,1777386639743,-1212.23212659,9.672e-05,2]
[421296677,1777386639751,-150.0,9.683e-05,2]
[421296678,1777386639760,-150.0,9.698e-05,2]
[421296679,1777386639770,-4342.2,9.712e-05,2]
[421296680,1777386639779,-423.79,9.712e-05,2]
[421296681,1777386639788,-155.0,9.734e-05,2]
[421296682,1777386639796,-150.0,9.739e-05,2]
[421296683,1777386639805,-150.0,9.739e-05,2]
[421296684,1777386639814,-150.0,9.755e-05,2]
[421296685,1777386639823,-150.0,9.755e-05,2]
[421296686,1777386639832,-826.19,9.774e-05,2]
[421296687,1777386639841,-1360.104714,9.8e-05,2]
[421296688,1777386639850,-182.90477,9.8e-05,2]
[421296689,1777386639859,-313.0,9.8e-05,2]
[421296690,1777386639868,-150.0,9.812e-05,2]
[421296691,1777386639877,-150.0,9.812e-05,2]
[421296692,1777386639887,-150.0,9.812e-05,2]
[421296693,1777386639896,-150.0,9.812e-05,2]
[421296694,1777386639906,-150.0,9.812e-05,2]
[421296695,1777386639914,-150.0,9.812e-05,2]
[421296696,1777386639923,-150.0,9.812e-05,2]
[421296697,1777386639932,-516.88658293,9.843e-05,2]
[421296698,1777386639941,-150.0,9.87e-05,2]
[421296699,1777386639950,-150.0,9.87e-05,2]
[421296700,1777386639959,-150.0,9.886e-05,2]
[421296701,1777386639968,-150.0,9.886e-05,2]
[421296702,1777386639977,-5287.8056393,9.894e-05,2]
[421296703,1777386639986,-2731.9284712,9.894e-05,2]
[421296704,1777386639995,-162.380719,9.924e-05,2]
[421296705,1777386640006,-270.51353541,9.924e-05,2]
[421296706,1777386640015,-799.54513345,9.924e-05,2]
[421296707,1777386640024,-200.0,9.924e-05,2]
[421296708,1777386640033,-1536.04360649,9.924e-05,2]
[421296709,1777386640042,-301.00069851,9.924e-05,2]
[421296710,1777386640051,-187.78006525,9.924e-05,2]
[421296711,1777386640060,-150.0,9.927e-05,2]
[421296712,1777386640069,-150.0,9.941e-05,2]
[421296713,1777386640078,-150.0,9.96e-05,2]
[421296714,1777386640087,-150.0,9.96e-05,2]
[421296715,1777386640097,-150.0,9.973e-05,2]
[421296716,1777386640106,-150.0,9.984e-05,2]
[421296717,1777386640115,-150.0,9.984e-05,2]
[421296718,1777386640124,-150.0,9.984e-05,2]
[421296719,1777386640133,-161.0,9.99e-05,2]
[421296720,1777386640142,-300.0,0.0001,2]
[421296721,1777386640152,-3957.0,0.0001,2]
[421296722,1777386640161,-151.0,0.0001,2]
[421296723,1777386640170,-200.0,0.0001,2]
[421296724,1777386640179,-682.38408686,0.0001,2]
[421296725,1777386640188,-1511.08133115,0.0001,2]
[421296726,1777386640197,-1683.77298173,0.0001,2]
[421296727,1777386640206,-200.0,0.0001,2]
[421296728,1777386640216,-200.0,0.0001,2]
[421296729,1777386640225,-151.0,0.0001,2]
[421296730,1777386640234,-200.0,0.0001,2]
[421296731,1777386640243,-2000.0,0.0001,2]
[421296732,1777386640252,-2000.0,0.0001,2]
[421296733,1777386640262,-2000.0,0.0001,2]
[421296734,1777386640271,-2000.0,0.0001,2]
[421296735,1777386640280,-2000.0,0.0001,2]
[421296736,1777386640289,-2000.0,0.0001,2]
[421296737,1777386640298,-307.0,0.0001,2]
[421296738,1777386640307,-439.48174169,0.0001,2]
[421296739,1777386640316,-200.0,0.0001,2]
[421296740,1777386640325,-151.0,0.0001,2]
[421296741,1777386640334,-151.0,0.0001,2]
[421296742,1777386640343,-500.0,0.0001,2]
[421296743,1777386640352,-151.0,0.0001,2]
[421296744,1777386640361,-500.0,0.0001,2]
[421296745,1777386640370,-151.0,0.0001,2]
[421296746,1777386640379,-500.0,0.0001,2]
[421296747,1777386640388,-151.0,0.0001,2]
[421296748,1777386640397,-500.0,0.0001,2]
[421296749,1777386640406,-151.0,0.0001,2]
[421296750,1777386640414,-500.0,0.0001,2]
[421296751,1777386640424,-151.0,0.0001,2]
[421296752,1777386640433,-500.0,0.0001,2]
[421296753,1777386640441,-151.0,0.0001,2]
[421296754,1777386640450,-500.0,0.0001,2]
[421296755,1777386640459,-151.0,0.0001,2]
[421296756,1777386640468,-500.0,0.0001,2]
[421296757,1777386640477,-151.0,0.0001,2]
[421296758,1777386640486,-500.0,0.0001,2]
[421296759,1777386640496,-151.0,0.0001,2]
[421296760,1777386640504,-500.0,0.0001,2]
[421296761,1777386640514,-500.0,0.0001,2]
[421296762,1777386640522,-500.0,0.0001,2]
[421296763,1777386640531,-500.0,0.0001,2]
[421296764,1777386640540,-500.0,0.0001,2]
[421296765,1777386640550,-500.0,0.0001,2]
[421296766,1777386640559,-500.0,0.0001,2]
[421296767,1777386640568,-500.0,0.0001,2]
[421296768,1777386640577,-500.0,0.0001,2]
[421296769,1777386640585,-329.84682867,0.0001,2]
[421296770,1777386640595,-223.023068,0.0001,2]
[421296771,1777386640604,-223.023068,0.0001,2]
[421296772,1777386640614,-223.023068,0.0001,2]
[421296773,1777386640623,-223.023068,0.0001,2]
[421296774,1777386640632,-801.958525,0.0001,2]
[421296775,1777386640643,-801.958525,0.0001,2]
[421296776,1777386640652,-801.958525,0.0001,2]
[421296777,1777386640662,-801.958525,0.0001,2]
[421296778,1777386640671,-1000.0,0.0001,2]
[421296779,1777386640681,-200.0,0.0001,2]
[421296780,1777386640690,-150.0,0.0001,3]
[421296781,1777386640699,-164.0,0.0001,3]
[421296782,1777386640709,-1215.985178,0.0001,2]
[421296783,1777386640721,-1215.985178,0.0001,2]
[421296784,1777386640732,-1215.985178,0.0001,2]
[421296785,1777386640743,-152.43804012,0.0001,2]
[421296786,1777386640753,-1215.985178,0.0001,2]
[421296787,1777386640763,-1263.82187119,0.0001,2]
[421296788,1777386640773,-161.0,0.0001001,2]
[421296789,1777386640783,-7047.62,0.00010021,2]
[421296790,1777386640793,-5036.95,0.00010021,2]
[421296791,1777386640803,-150.0,0.00010034,2]
[421296792,1777386640813,-150.0,0.00010034,2]
[421296793,1777386640823,-150.0,0.00010042,2]
[421296794,1777386640832,-826.19,0.00010048,2]
[421296795,1777386640842,-150.0,0.00010071,2]
[421296796,1777386640851,-150.0,0.00010071,2]
[421296797,1777386640861,-150.0,0.00010099,2]
[421296798,1777386640870,-150.0,0.00010099,2]
[421296799,1777386640880,-262.15419696,0.000101,2]
[421296800,1777386640889,-200.0,0.000101,2]
[421296801,1777386640899,-200.0,0.000101,2]
[421296802,1777386640908,-200.0,0.000101,2]
[421296803,1777386640918,-5529.0,0.000101,3]
[421296804,1777386640928,-200.0,0.000101,2]
[421296805,1777386640937,-150.0,0.00010107,2]
[421296806,1777386640947,-150.0,0.00010107,2]
[421296807,1777386640956,-151.0,0.00010125,2]
[421296808,1777386640969,-150.0,0.00010157,2]
[421296809,1777386640979,-150.0,0.00010157,2]
[421296810,1777386640988,-150.0,0.00010181,2]
[421296811,1777386640998,-150.0,0.00010181,2]
[421296812,1777386641009,-150.0,0.000102,2]
[421296813,1777386641018,-5529.0,0.000102,5]
[421296814,1777386641028,-200.0,0.00010201,2]
[421296815,1777386641037,-200.0,0.00010201,2]
[421296816,1777386641047,-200.0,0.00010201,2]
[421296817,1777386641056,-200.0,0.00010201,2]
[421296818,1777386641066,-1233.39212599,0.00010204,2]
[421296819,1777386641075,-150.0,0.00010214,2]
[421296820,1777386641085,-150.0,0.00010214,2]
[421296821,1777386641095,-776.1596893,0.0001022,2]
[421296822,1777386641104,-150.0,0.00010255,2]
[421296823,1777386641114,-150.0,0.00010255,2]
[421296824,1777386641123,-150.0,0.00010271,2]
[421296825,1777386641132,-200.0,0.00010303,2]
[421296826,1777386641142,-200.0,0.00010303,2]
[421296827,1777386641152,-200.0,0.00010303,2]
[421296828,1777386641161,-826.19,0.00010322,2]
[421296829,1777386641170,-150.0,0.00010329,2]
[421296830,1777386641181,-150.0,0.00010329,2]
[421296831,1777386641191,-150.0,0.00010329,2]
[421296832,1777386641201,-150.55191328,0.00010329,2]
[421296833,1777386641210,-150.00000001,0.00010329,2]
[421296834,1777386641221,-150.0,0.00010329,2]
[421296835,1777386641231,-209.69729653,0.00010329,2]
[421296836,1777386641241,-150.00000001,0.00010329,2]
[421296837,1777386641251,-150.00000001,0.00010329,2]
[421296838,1777386641261,-151.0,0.0001033,2]
[421296839,1777386641270,-151.0,0.0001033,2]
[421296841,1777386641280,-151.0,0.0001033,2]
[421296843,1777386641290,-254.587498,0.0001033,2]
[421296845,1777386641300,-151.0,0.0001033,2]
[421296847,1777386641310,-151.0,0.0001033,2]
[421296849,1777386641319,-587.0,0.00010331,2]
[421296851,1777386641329,-2351.0,0.00010331,2]
[421296853,1777386641338,-433.0,0.00010331,2]
[421296855,1777386641348,-151.0,0.00010335,2]
[421296857,1777386641358,-151.0,0.00010335,2]
[421296859,1777386641367,-287.129564,0.00010335,2]
[421296861,1777386641377,-9224.5226653,0.00010335,2]
[421296863,1777386641386,-221.49249682,0.00010356,2]
[421296865,1777386641396,-200.0,0.00010406,2]
[421296867,1777386641406,-200.0,0.00010406,2]
[421296869,1777386641415,-200.0,0.00010406,2]
[421296871,1777386641425,-1095.45000761,0.00010467,3]
[421296873,1777386641434,-168.3888056,0.00010472,2]
[421296875,1777386641444,-829.12830338,0.00010472,2]
[421296878,1777386641454,-200.0,0.00010472,2]
[421296881,1777386641464,-1592.87721993,0.00010472,2]
[421296884,1777386641473,-236.08557706,0.00010472,2]
[421296887,1777386641483,-194.72792766,0.00010472,2]
[421296890,1777386641492,-28000.0,0.000105,2]
[421296893,1777386641502,-223.023068,0.000105,2]
[421296896,1777386641511,-223.023068,0.000105,2]
[421296898,1777386641520,-223.023068,0.000105,2]
[421296900,1777386641530,-223.023068,0.000105,2]
[421296902,1777386641539,-801.958525,0.000105,2]
[421296904,1777386641549,-801.958525,0.000105,2]
[421296906,1777386641559,-801.958525,0.000105,2]
[421296908,1777386641569,-801.958525,0.000105,2]
[421296910,1777386641579,-1215.985178,0.000105,2]
[421296912,1777386641588,-1215.985178,0.000105,2]
[421296914,1777386641599,-1215.985178,0.000105,2]
[421296916,1777386641609,-1215.985178,0.000105,2]
[421296918,1777386641618,-150.487,0.00010522,2]
[421296920,1777386641628,-1272.852,0.00010522,2]
[421296922,1777386641637,-1225.05,0.00010522,2]
[421296924,1777386641647,-927.0,0.00010522,2]
[421296926,1777386641658,-1049.0,0.00010522,2]
[421296928,1777386641667,-6035.0,0.00010522,2]
[421296930,1777386641676,-200.0,0.00010548,2]
[421296932,1777386641686,-173.1846357,0.00010596,2]
[421296934,1777386641695,-2058.2692196,0.00010596,2]
[421296936,1777386641705,-826.23,0.00010596,2]
[421296938,1777386641715,-465.477601,0.000106,2]
[421296940,1777386641724,-200.0,0.00010617,2]
[421296942,1777386641734,-500.0,0.00010673,2]
[421296944,1777386641743,-500.0,0.00010673,2]
[421296946,1777386641753,-470.71593278,0.00010673,2]
[421296950,1777386641778,-29.28406722,0.00010673,2]
[421296952,1777386641788,-500.0,0.00010673,2]
[421296954,1777386641798,-500.0,0.00010673,2]
[421296956,1777386641807,-500.0,0.00010673,2]
[421296957,1777386641816,-500.73170511,0.00010673,2]
[421296958,1777386641826,-500.0,0.00010673,2]
[421296959,1777386641835,-500.0,0.00010673,2]
[421296960,1777386641846,-500.0,0.00010673,2]
[421296961,1777386641855,-500.0,0.00010673,2]
[421296962,1777386641865,-500.0,0.00010673,2]
[421296963,1777386641874,-500.65028882,0.00010673,2]
[421296964,1777386641885,-500.0,0.00010673,2]
[421296965,1777386641894,-500.0,0.00010673,2]
[421296966,1777386641903,-500.0,0.00010673,2]
[421296967,1777386641913,-167.9788358,0.00010673,2]
[421296968,1777386641923,-500.0,0.00010673,2]
[421296969,1777386641932,-160.31062751,0.00010673,2]
[421296970,1777386641942,-151.0,0.00010673,2]
[421296971,1777386641951,-151.0,0.00010673,2]
[421296972,1777386641961,-150.0,0.00010685,2]
[421296973,1777386641971,-151.0,0.00010697,2]
[421296974,1777386641980,-151.0,0.00010697,2]
[421296975,1777386641989,-40097.67093374,0.000107,2]
[421296976,1777386642001,-41989.03429514,0.000107,2]
[421296977,1777386642109,-200.53352621,0.0001,2]
[421296978,1777386642118,-151.0,0.00010201,2]
[421296979,1777386642127,-151.0,0.00010271,2]
[421296980,1777386642137,-120843.82550557,0.000107,2]
[421296981,1777386642146,-151.0,0.000107,2]
[421296983,1777386642158,-151.0,0.000107,2]
[421296985,1777386642168,-151.0,0.000107,2]
[421296986,1777386642177,-151.0,0.000107,2]
[421296987,1777386642186,-151.0,0.000107,2]
[421296988,1777386642195,-223.023068,0.000107,2]
[421296989,1777386642204,-223.023068,0.000107,2]
[421296991,1777386642214,-223.023068,0.000107,2]
[421296992,1777386642223,-223.02306,0.000107,2]
[421296993,1777386642232,-801.958525,0.000107,2]
[421296994,1777386642242,-801.958525,0.000107,2]
[421296995,1777386642251,-801.958525,0.000107,2]
[421296996,1777386642260,-801.958521,0.000107,2]
[421296997,1777386642269,-1215.985178,0.000107,2]
[421296998,1777386642279,-1215.985178,0.000107,2]
[421296999,1777386642289,-1215.985178,0.000107,2]
[421297000,1777386642298,-1215.985168,0.000107,2]
[421297001,1777386642307,-150.0,0.00010706,3]
[421297002,1777386642316,-1138.0,0.00010807,2]
[421297003,1777386642326,-333.0,0.00010807,2]
[421297004,1777386642335,-322.0,0.00010807,2]
[421297005,1777386642344,-2065.5176,0.00010857,2]
[421297006,1777386642354,-2857.1872,0.00010859,2]
[421297007,1777386642363,-151.0,0.00010868,2]
[421297008,1777386642372,-200.0,0.00010868,2]
[421297009,1777386642382,-150.0,0.00010868,2]
[421297010,1777386642391,-173.241,0.00010868,2]
[421297011,1777386642400,-150.563,0.00010868,2]
[421297013,1777386642409,-256.929,0.00010868,2]
[421297014,1777386642419,-150.0,0.00010868,2]
[421297015,1777386642428,-352.91611983,0.00010882,2]
[421297016,1777386642436,-7100.0,0.000109,3]
[421297017,1777386642446,-3206.92164608,0.000109,2]
[421297018,1777386642455,-3206.92164602,0.000109,2]
[421297019,1777386642465,-3206.92164602,0.000109,2]
[421297020,1777386642474,-3206.92164602,0.000109,2]
[421297021,1777386642483,-3206.92164602,0.000109,2]
[421297022,1777386642493,-529.9,0.00010913,2]
[421297023,1777386642502,-2995.922,0.00010947,2]
[421297024,1777386642512,-156.394,0.00010947,2]
[421297025,1777386642522,-500.0,0.00010958,2]
[421297026,1777386642531,-500.0,0.00010958,2]
[421297027,1777386642540,-500.0,0.00010958,2]
[421297028,1777386642550,-500.0,0.00010958,2]
[421297029,1777386642561,-500.0,0.00010958,2]
[421297030,1777386642570,-500.0,0.00010958,2]
[421297031,1777386642580,-500.0,0.00010958,2]
[421297032,1777386642589,-200.0,0.00010959,2]
[421297033,1777386642599,-500.0,0.00010959,2]
[421297034,1777386642608,-358.242194,0.00010959,2]
[421297035,1777386642617,-358.242194,0.00010959,2]
[421297036,1777386642627,-358.242194,0.00010959,2]
[421297037,1777386642636,-358.242194,0.00010959,2]
[421297038,1777386642645,-358.242194,0.00010959,2]
[421297039,1777386642654,-358.242194,0.00010959,2]
[421297040,1777386642664,-358.242194,0.00010959,2]
[421297041,1777386642674,-358.242194,0.00010959,2]
[421297043,1777386642683,-358.242194,0.00010959,2]
[421297045,1777386642693,-358.242194,0.00010959,2]
[421297047,1777386642702,-358.242194,0.00010959,2]
[421297050,1777386642711,-358.242194,0.00010959,2]
[421297051,1777386642722,-358.242194,0.00010959,2]
[421297052,1777386642731,-358.242194,0.00010959,2]
[421297053,1777386642740,-358.242194,0.00010959,2]
[421297054,1777386642750,-358.242194,0.00010959,2]
[421297055,1777386642759,-358.242194,0.00010959,2]
[421297056,1777386642769,-358.242194,0.00010959,2]
[421297057,1777386642778,-358.242194,0.00010959,2]
[421297058,1777386642787,-358.242184,0.00010959,2]
[421297059,1777386642797,-227.26162,0.00010959,2]
[421297060,1777386642806,-227.26162,0.00010959,2]
[421297061,1777386642815,-227.26162,0.00010959,2]
[421297062,1777386642824,-227.26162,0.00010959,2]
[421297063,1777386642834,-227.26162,0.00010959,2]
[421297064,1777386642843,-227.26162,0.00010959,2]
[421297065,1777386642852,-227.26162,0.00010959,2]
[421297066,1777386642861,-227.26162,0.00010959,2]
[421297067,1777386642871,-227.26162,0.00010959,2]
[421297069,1777386642880,-227.26162,0.00010959,2]
[421297073,1777386642890,-227.26162,0.00010959,2]
[421297077,1777386642899,-227.26162,0.00010959,2]
[421297079,1777386642908,-227.26162,0.00010959,2]
[421297080,1777386642918,-227.26162,0.00010959,2]
[421297081,1777386642927,-227.26162,0.00010959,2]
[421297082,1777386642936,-227.26162,0.00010959,2]
[421297083,1777386642945,-227.26162,0.00010959,2]
[421297084,1777386642954,-227.26162,0.00010959,2]
[421297085,1777386642963,-227.26162,0.00010959,2]
[421297086,1777386642974,-227.261614,0.00010959,2]
[421297087,1777386642984,-1137.0,0.00010959,2]
[421297088,1777386642993,-660.749457,0.00010959,2]
[421297089,1777386643002,-660.749457,0.00010959,2]
[421297090,1777386643012,-660.749457,0.00010959,2]
[421297091,1777386643022,-660.749457,0.00010959,2]
[421297092,1777386643031,-660.749457,0.00010959,2]
[421297093,1777386643041,-660.749457,0.00010959,2]
[421297094,1777386643051,-660.749457,0.00010959,2]
[421297095,1777386643060,-660.749457,0.00010959,2]
[421297096,1777386643070,-660.749457,0.00010959,2]
[421297097,1777386643079,-660.749457,0.00010959,2]
[421297098,1777386643089,-660.749457,0.00010959,2]
[421297099,1777386643098,-660.749457,0.00010959,2]
[421297100,1777386643274,-660.749457,0.00010959,2]
[421297101,1777386643311,-660.749457,0.00010959,2]
[421297102,1777386643321,-660.749457,0.00010959,2]
[421297103,1777386643331,-660.749457,0.00010959,2]
[421297104,1777386643340,-660.749457,0.00010959,2]
[421297105,1777386643350,-660.749457,0.00010959,2]
[421297106,1777386643359,-660.749457,0.00010959,2]
[421297107,1777386643368,-660.749462,0.00010959,2]
[421297108,1777386643378,-3150.0,0.00010959,2]
[421297109,1777386643388,-150.0,0.00010989,2]
[421297110,1777386643397,-1800.0,0.00011,2]
[421297111,1777386643407,-500.0,0.00011,2]
[421297113,1777386643416,-500.0,0.00011,2]
[421297114,1777386643426,-500.0,0.00011,2]
[421297115,1777386643436,-516.63,0.00011,2]
[421297116,1777386643445,-174.61919141,0.0001102,2]
[421297117,1777386643454,-676.46126103,0.0001102,2]
[421297118,1777386643464,-209.66229233,0.0001102,2]
[421297119,1777386643475,-1651.81367706,0.0001102,2]
[421297120,1777386643484,-201.93286099,0.0001102,2]
[421297121,1777386643494,-3206.92164602,0.00011029,2]
[421297122,1777386643504,-401.0,0.00011068,2]
[421297123,1777386643513,-3370.0,0.00011068,2]
[421297124,1777386643523,-150.0,0.00011096,2]
[421297125,1777386643533,-200.0,0.00011096,2]
[421297126,1777386643543,-300.0,0.00011098,2]
[421297127,1777386643553,-300.0,0.00011098,2]
[421297128,1777386643563,-300.0,0.00011098,2]
[421297129,1777386643572,-666.0,0.00011098,2]
[421297130,1777386643581,-305.78147167,0.00011098,2]
[421297131,1777386643591,-300.0,0.00011098,2]
[421297132,1777386643600,-300.0,0.00011098,2]
[421297133,1777386643610,-300.0,0.00011098,2]
[421297134,1777386643619,-666.0,0.00011098,2]
[421297135,1777386643629,-150.0,0.00011098,2]
[421297136,1777386643638,-1095.45000761,0.00011098,3]
[421297137,1777386643648,-500.0,0.00011098,2]
[421297138,1777386643658,-500.0,0.00011098,2]
[421297139,1777386643667,-49834.90640939,0.00011099,2]
[421297140,1777386643677,-49834.90640937,0.00011099,2]
[421297141,1777386643687,-49834.90640937,0.00011099,2]
[421297142,1777386643696,-49834.90640937,0.00011099,2]
[421297143,1777386643706,-49834.90640937,0.00011099,2]
[421297144,1777386643716,-49834.90640937,0.00011099,2]
[421297145,1777386643726,-49834.90640937,0.00011099,2]
[421297146,1777386643735,-300.0000009,0.00011099,2]
[421297147,1777386643744,-1669.73364046,0.000111,2]
[421297148,1777386643755,-1157.22138105,0.00011133,3]
[421297149,1777386643765,-49834.90640937,0.00011195,2]
[421297150,1777386643775,-300.0,0.00011219,2]
[421297151,1777386643785,-300.0,0.00011219,2]
[421297152,1777386643794,-666.0,0.00011219,2]
[421297153,1777386643803,-500.0,0.00011219,2]
[421297154,1777386643813,-1000.0,0.00011221,2]
[421297155,1777386643822,-501.56215985,0.00011221,2]
[421297156,1777386643832,-502.12672092,0.00011221,2]
[421297157,1777386643841,-504.64121284,0.00011221,2]
[421297158,1777386643851,-1000.0,0.00011221,2]
[421297159,1777386643860,-1000.0,0.00011221,2]
[421297160,1777386643870,-400.61670098,0.00011221,2]
[421297161,1777386643880,-1000.0,0.00011221,2]
[421297162,1777386643889,-1000.0,0.00011221,2]
[421297163,1777386643898,-1000.0,0.00011221,2]
[421297164,1777386643908,-1000.0,0.00011221,2]
[421297165,1777386643918,-501.49599921,0.00011221,2]
[421297166,1777386643927,-1000.0,0.00011221,2]
[421297167,1777386643936,-1000.0,0.00011221,2]
[421297168,1777386643946,-1000.0,0.00011221,2]
[421297169,1777386643955,-1382.09009037,0.00011229,2]
[421297170,1777386643964,-7269.96214138,0.00011229,2]
[421297171,1777386643974,-880.72052985,0.00011229,2]
[421297172,1777386643984,-465.477601,0.0001125,2]
[421297173,1777386643993,-9500.0,0.000113,4]
[421297174,1777386644003,-1095.45000761,0.00011321,3]
[421297175,1777386644012,-823.0,0.00011364,2]
[421297176,1777386644022,-3292.0,0.00011364,2]
[421297177,1777386644031,-736.0,0.00011364,2]
[421297178,1777386644041,-12609.0,0.0001137,2]
[421297179,1777386644051,-2649.0,0.00011376,2]
[421297180,1777386644060,-615.0,0.00011376,2]
[421297181,1777386644069,-173.0,0.00011376,2]
[421297182,1777386644079,-485.0,0.00011376,2]
[421297183,1777386644089,-764.0,0.00011376,2]
[421297184,1777386644098,-1016.0,0.00011376,2]
[421297185,1777386644108,-252.0,0.00011376,2]
[421297186,1777386644118,-185.0,0.00011376,2]
[421297187,1777386644128,-485.906881,0.000114,2]